Cogmind - Beta 10.2 @@@ ROGUE MODE // 2020.11.22 @ 14:52:15 // Halloween2020/ForbiddenLore Player: Perseus Result: Core destroyed Performance ------------- Evolutions (6) 3000 Regions Visited (22) 4400 Robots Destroyed (179) 895 Value Destroyed (7856) 7856 Prototype IDs (241) 4820 Alien Tech Used (1) 200 Bonus (6591) 6591 TOTAL SCORE: 27762 Bonus ------- High Alert Combat Kills 420 Follower Combat Kills 1476 Aligned with FarCom 300 Met Data Miner 300 Used Data Conduit 3000 Met Imprinter 300 Built Enhanced Grunts 300 Pursued by Intercept 1000 Friendly Fire -505 Cogmind --------- Core Integrity 0/1150 Matter 300/300 Energy 350/350 System Corruption 17% Temperature Cool (0) Movement Walking (110) Location -4/Armory Parts ------- > --- POWER (2) -------- Quantum Reactor > --- PROPULSION (5) --- Centrium Leg Centrium Leg Centrium Leg Centrium Leg Potential Leg > --- UTILITY (9) ------ (None) > --- WEAPON (4) ------- (None) > --- INVENTORY (4) ---- (None) Peak State ------------ > --- POWER ------------ Light Antimatter Reactor Heavy Antimatter Reactor > --- PROPULSION ------- Enhanced Armored Leg Enhanced Armored Leg Advanced Myomer Leg Centrium Leg Centrium Leg > --- UTILITY ---------- Advanced Cooling System Large Storage Unit Advanced Signal Interpreter Advanced Targeting Computer Advanced Force Booster Advanced Reaction Control System Improved Medium Armor Plating Energy Mantle System Backup Module > --- WEAPON ----------- Cooled Plasma Rifle Enhanced Quantum Rifle Heavy Proton Cannon Molecular Scythe > --- INVENTORY -------- Quantum Reactor Potential Leg Improved Heat Sink Storm Laser KE Penetrator Molecular Deconstructor [Rating: 140] Favorites ----------- Power Light Angular Momentum Engine Engine Light Angular Momentum Engine Power Core Enhanced Nuclear Core Reactor Particle Reactor Propulsion Carbon-fiber Leg Treads Armored Treads Leg Carbon-fiber Leg Hover Unit Aerolev Unit Flight Unit Field Propulsion Drive Utility Advanced Heat Sink Device Advanced Heat Sink Storage Medium Storage Unit Processor Improved Terrain Scan Processor Hackware Hacking Suite Protection Hardened Medium Armor Plating Weapon Plasma Cannon Energy Gun Improved Spread Laser Energy Cannon Plasma Cannon Ballistic Gun Assault Rifle Ballistic Cannon Heavy Flak Cannon Launcher Compact Tesla Bomb Launcher Special Weapon Flamer Impact Weapon Power Maul Slashing Weapon Molecular Scythe Piercing Weapon Heavy Pick Build | -11 -10 -10 -10 -9 -8 -7 -7 -7 -7 -6 -6 -6 -6 -6 -5 -5 -5 -5 -5 -5 -4 -4 ------- Run | Scr Mat Min Exi Min Mat Fac Low Low Dat Pro Fac Low Low Zio Pro Fac Ext Cet Arc Hub Fac Arm Slots Evolved 12 | . . . . . 4 2 . . . . 2 . . . . 2 . . . . 2 . Power 1 | . . . . . . . . . . . 1 . . . . . . . . . . . Propulsion 2 | . . . . . 1 . . . . . 1 . . . . . . . . . . . Utility 7 | . . . . . 2 2 . . . . . . . . . 1 . . . . 2 . Weapon 2 | . . . . . 1 . . . . . . . . . . 1 . . . . . . Parts Attached 332 | 7 7 3 2 . 11 28 3 4 3 8 34 13 13 3 3 6 63 17 7 21 12 64 Power 40 | 1 1 1 . . . 5 1 . . 1 6 1 1 . . 1 7 3 2 . 4 5 Engine 23 | 1 1 1 . . . 4 1 . . . 4 1 1 . . 1 6 2 . . . . Core 8 | . . . . . . 1 . . . 1 2 . . . . . . . . . 3 1 Reactor 9 | . . . . . . . . . . . . . . . . . 1 1 2 . 1 4 Propulsion 84 | 2 2 1 2 . 4 6 1 . 1 2 8 2 5 . . . 21 5 . 7 . 15 Treads 2 | . . . . . . . . . . 1 . . 1 . . . . . . . . . Leg 79 | 2 2 1 2 . 3 5 1 . 1 1 8 2 4 . . . 20 5 . 7 . 15 Wheel . | . . . . . . . . . . . . . . . . . . . . . . . Hover 2 | . . . . . 1 1 . . . . . . . . . . . . . . . . Flight 1 | . . . . . . . . . . . . . . . . . 1 . . . . . Utility 96 | 2 2 . . . 4 11 . 1 1 2 9 3 3 2 . 2 18 2 3 7 5 19 Device 63 | 1 . . . . 2 5 . . 1 1 6 3 3 . . 1 11 1 2 6 2 18 Storage 5 | 1 1 . . . 1 . . . . . . . . 1 . . . . . 1 . . Processor 11 | . 1 . . . 1 2 . . . 1 1 . . 1 . . 1 . . . 2 1 Hackware 2 | . . . . . . . . . . . 1 . . . . . 1 . . . . . Protection 15 | . . . . . . 4 . 1 . . 1 . . . . 1 5 1 1 . 1 . Artifact . | . . . . . . . . . . . . . . . . . . . . . . . Weapon 112 | 2 2 1 . . 3 6 1 3 1 3 11 7 4 1 3 3 17 7 2 7 3 25 Energy Gun 38 | 2 . 1 . . 2 3 . 1 . 2 2 1 . . . 1 9 2 . 4 1 7 Energy Cannon 12 | . . . . . . 1 . 1 . . 2 1 . . . . 2 . . 2 2 1 Ballistic Gun 31 | . 2 . . . 1 1 1 1 1 . 3 . . 1 1 2 5 4 2 . . 6 Ballistic Cannon 10 | . . . . . . 1 . . . . 3 2 2 . 1 . . . . 1 . . Launcher 2 | . . . . . . . . . . . 1 . . . . . . . . . . 1 Special Weapon 5 | . . . . . . . . . . 1 . . . . 1 . 1 1 . . . 1 Impact Weapon 5 | . . . . . . . . . . . . 2 2 . . . . . . . . 1 Slashing Weapon 8 | . . . . . . . . . . . . . . . . . . . . . . 8 Piercing Weapon 1 | . . . . . . . . . . . . 1 . . . . . . . . . . Special Melee Weapon . | . . . . . . . . . . . . . . . . . . . . . . . Unidentified Prototypes 7 | . . . 1 . 1 3 . . . . . 1 . . 1 . . . . . . . Parts Lost 94 | . 2 . . . . 7 . 2 10 2 21 . . . . . 16 8 . 3 6 17 Power 11 | . . . . . . . . . 1 . 3 . . . . . 2 1 . . 2 2 Propulsion 19 | . . . . . . 1 . . 3 . 7 . . . . . 4 2 . . 1 1 Utility 22 | . . . . . . 1 . 1 2 1 3 . . . . . 3 1 . . 1 9 Weapon 42 | . 2 . . . . 5 . 1 4 1 8 . . . . . 7 4 . 3 2 5 Highest Loss Streak 15 | . 1 . . . . 3 . 2 10 1 12 . . . . . 13 8 . 1 5 15 Average Slot Usage (%) 95 | . 99 100 99 100 91 98 100 94 87 73 94 68 91 100 99 98 97 96 99 99 98 95 Engine 6 | . 14 14 14 14 9 6 7 7 6 . 2 6 11 12 12 11 10 7 . . . . Core 1 | . . . . . . . . . . 6 9 . . . . . . . . . 3 1 Reactor 1 | . . . . . . . . . . . . . . . . . . 2 9 11 6 7 Leg 24 | . 28 28 27 28 24 22 23 23 21 14 20 9 19 31 31 27 26 26 27 27 24 24 Device 16 | . 3 . . . 12 20 15 15 14 14 12 11 21 19 18 16 16 16 16 22 24 29 Storage 6 | . 14 14 14 14 9 7 7 7 7 7 6 6 6 6 6 5 5 5 5 5 5 4 Processor 10 | . 10 14 14 14 9 9 7 7 7 10 13 18 9 10 12 11 11 11 10 5 5 6 Protection 3 | . . . . . . 7 15 10 6 . 1 . . . . 5 3 4 5 5 8 1 Energy Gun 8 | . 14 2 14 14 16 9 15 10 6 9 8 3 6 5 . 3 9 4 5 5 11 11 Energy Cannon 2 | . . . . . . 3 . 4 6 . 2 3 6 6 6 5 . . . 5 5 2 Ballistic Gun 5 | . 13 25 14 14 9 4 5 6 6 . 2 . . . 5 6 11 14 16 5 . 3 Ballistic Cannon 2 | . . . . . . 2 2 . . . 4 5 4 6 5 4 . . . 4 3 . Naked Turns . | . . . . . . . . . . . . . . . . . . . . . . . Heaviest Build 101 | 13 16 17 17 17 23 48 48 50 51 28 57 39 49 57 50 57 72 72 85 95 100 101 Greatest Support 150 | 20 20 20 20 20 45 50 50 48 48 45 86 45 95 95 95 95 100 95 85 108 108 150 Greatest Overweight (x) 1 | . . . 1 . . 1 . 1 1 . . 1 1 . . . 1 . . 1 . 1 Average Overweight (x) . | . . . . . . . . . . . . . . . . . . . . . . . Largest Inventory Capacity 10 | 6 8 8 8 8 8 8 8 8 8 8 8 8 8 10 10 10 10 10 10 10 10 10 Average Capacity 8 | 4 7 8 8 8 8 8 8 8 8 8 8 8 8 9 10 10 10 10 10 10 10 9 Most Carried 10 | 4 8 8 8 8 8 8 8 8 8 7 8 8 8 10 10 10 10 10 10 10 10 10 Average Carried 8 | 3 4 7 7 8 7 7 7 7 7 4 7 6 7 9 9 8 9 9 9 9 9 9 Final Capacity 10 | 6 8 8 8 8 8 8 8 8 8 8 8 8 8 10 10 10 10 10 10 10 10 4 Final Carried 10 | 2 7 7 8 8 8 8 8 8 6 6 8 8 8 10 10 10 10 10 10 10 10 . Class Distribution -------------------- 31% | Scavenger-Skirmisher 18% | Mutant 15% | Derelict-Skirmisher 11% | Tank 10% | Skirmisher 4% | Scavenger-Tank 3% | Scavenger-Mutant Dominant Class ---------------- Mutant | -10/Materials Mutant | -10/Mines Mutant | -10/Exiles Mutant | -9/Mines Scavenger-Skirmisher | -8/Materials Scavenger-Skirmisher | -7/Factory Tank | -7/Lower Caves Tank | -7/Lower Caves Tank | -7/Data Miner Mutant | -6/Proximity Caves Skirmisher | -6/Factory Derelict-Skirmisher | -6/Lower Caves Derelict-Skirmisher | -6/Lower Caves Derelict-Skirmisher | -6/Zion Derelict-Skirmisher | -5/Proximity Caves Derelict-Skirmisher | -5/Factory Scavenger-Skirmisher | -5/Extension Scavenger-Skirmisher | -5/Cetus Scavenger-Skirmisher | -5/Archives Scavenger-Skirmisher | -5/Hub_04(d) Scavenger-Tank | -4/Factory Scavenger-Skirmisher | -4/Armory Resources | -11 -10 -10 -10 -9 -8 -7 -7 -7 -7 -6 -6 -6 -6 -6 -5 -5 -5 -5 -5 -5 -4 -4 ----------- Run | Scr Mat Min Exi Min Mat Fac Low Low Dat Pro Fac Low Low Zio Pro Fac Ext Cet Arc Hub Fac Arm Matter Collected 6613 | 270 143 127 38 . 156 375 70 118 . 18 876 327 268 27 63 135 1145 403 218 706 345 785 Remotely 60 | . . . . . . . . . . . . . . . . . . . . . . 60 Salvage Created 8523 | 99 287 139 . . 281 446 100 218 . . 1335 208 182 . 18 143 1585 378 217 1104 601 1182 Parts 370 | 10 26 8 . . 21 29 5 3 . . 59 3 7 . 3 4 46 11 9 58 25 43 Haulers Intercepted 8 | . 1 . . . 3 . . . . . 2 . . . . 1 . . . 1 . . Recyclers Shooed 3 | . . . . . . . . . . . 1 . . . . . 2 . . . . . Parts Field Recycled . | . . . . . . . . . . . . . . . . . . . . . . . Retrieved Matter . | . . . . . . . . . . . . . . . . . . . . . . . Parts Self-Destructed 13 | . . . . . . . 4 3 . . . 2 1 . 3 . . . . . . . Prevented 3 | . . . . . . . . . . . . . 3 . . . . . . . . . Kills | -11 -10 -10 -10 -9 -8 -7 -7 -7 -7 -6 -6 -6 -6 -6 -5 -5 -5 -5 -5 -5 -4 -4 ------- Run | Scr Mat Min Exi Min Mat Fac Low Low Dat Pro Fac Low Low Zio Pro Fac Ext Cet Arc Hub Fac Arm Combat Hostiles Destroyed 131 | . 9 5 . . 2 9 5 5 . . 16 4 3 . . 2 15 10 2 20 6 18 Melee 2 | . . . . . . . . . . . . . . . . . . . . . . 2 Guns 86 | . 9 5 . . 2 5 3 4 . . 8 . 2 . . . 12 8 2 7 5 14 Cannons 40 | . . . . . . 4 2 1 . . 6 4 1 . . 2 3 2 . 13 1 1 AOE 1 | . . . . . . . . . . . 1 . . . . . . . . . . . Classes Destroyed 20 | 2 4 . . . 2 4 . 2 . . 1 . . . 1 . 1 . . . 1 2 Worker 6 | . . . . . . . . . . . 3 . . . . . . . . 3 . . Builder 4 | . . . . . 1 1 . . . . . . . . . . . . . 1 1 . Tunneler 8 | 3 . 1 . . 2 . . . . . 2 . . . . . . . . . . . Hauler 8 | . 1 . . . 3 . . . . . 2 . . . . 1 . . . 1 . . Recycler 6 | 1 . . . . . . . . . . . . . . . . 4 . . . 1 . Minesweeper 1 | . . . . . . . . . . . . . . . 1 . . . . . . . Mechanic 1 | . . . . . . . . . . . . . . . . . . . . . 1 . Operator 3 | . . . . . . . . . . . . . . . . . 1 . 1 1 . . Watcher 11 | . 1 . . . . 1 . . . . 3 . . . . . . 1 . 1 3 1 Swarmer 28 | . 6 3 . . . 1 4 . . . 2 . . . . . . 7 . 5 . . Grunt 37 | . 3 2 . . . 1 . 2 . . 9 3 3 . . 2 4 . . 7 . 1 Brawler 4 | . . . . . . 1 . 1 . . 1 1 . . . . . . . . . . Duelist 1 | . . . . . . 1 . . . . . . . . . . . . . . . . Protector 1 | . . . . . . . . . . . . . . . . . . . . . . 1 Sentry 20 | . . . . . . 3 . . . . 1 . . . . . 6 . 2 4 2 2 Specialist 1 | . . . . . . . . . . . . . . . . . . . . . . 1 Hunter 9 | . . . . . 2 . 1 . . . . . . . . . 1 1 . 2 . 2 Programmer 22 | . . . . . . 2 . . . . 2 . . . . . 2 . . 2 4 10 Behemoth 3 | . . . . . . . . 1 . . . . . . . . 2 . . . . . Cetus Guard 2 | . . . . . . . . . . . . . . . . . . 2 . . . . Tracker 2 | . . . . . . . . . . . 1 . . . . . . . . . . 1 Mutant 1 | . . . . . . . . 1 . . . . . . . . . . . . . . Best Kill Streak 10 | 4 6 3 . . 3 2 4 2 . . 4 2 2 . 1 2 3 10 2 5 3 3 Combat Bots Only 9 | . 6 3 . . 1 2 4 2 . . 4 2 2 . . 1 3 9 2 4 2 3 Max Kills in Single Turn 3 | 1 1 1 . . 1 1 3 1 . . 2 1 1 . 1 1 2 2 1 2 2 2 Gunslinging 1 | . . . . . . . . . . . . . . . . . 1 . . . . 1 Exploded 1 | . . . . . . . . . . . 1 . . . . . . . . . . . Melee 1 | . . . . . . . . . . . . . . . . . . . . . . 1 Uniques/NPCs Destroyed . | . . . . . . . . . . . . . . . . . . . . . . . Combat | -11 -10 -10 -10 -9 -8 -7 -7 -7 -7 -6 -6 -6 -6 -6 -5 -5 -5 -5 -5 -5 -4 -4 -------- Run | Scr Mat Min Exi Min Mat Fac Low Low Dat Pro Fac Low Low Zio Pro Fac Ext Cet Arc Hub Fac Arm Damage Taken 21140 | . 423 176 . . 64 1153 307 620 971 226 3521 248 57 . . 172 3075 1686 168 2262 1587 4424 Core 2959 | . 74 46 . . . 94 53 30 93 37 488 135 . . . 19 325 217 . 183 252 913 Absorbed by Shields 1160 | . . . . . . . . . . . 8 . . . . . 156 10 . . . 986 Core Remaining (%) 59 | 100 . . . 52 100 . . . . 56 . . . . 26 . . . . 25 . . Volleys Fired 586 | 8 40 21 . . 18 47 7 22 14 3 98 13 6 . 4 15 71 27 12 48 48 64 Largest 4 | 2 2 2 . . 3 3 3 3 3 1 3 3 3 . 3 4 4 4 4 4 4 4 Hottest 360 | 90 90 70 . . 150 179 190 178 178 45 169 213 213 . 156 206 223 240 173 322 360 272 Shots Fired 1646 | 16 78 42 . . 51 114 19 59 32 3 238 21 18 . 8 42 260 91 47 187 130 190 Gun 1182 | 16 78 42 . . 51 75 16 50 19 3 123 5 6 . 2 20 244 80 47 90 59 156 Cannon 453 | . . . . . . 39 3 9 13 . 115 16 12 . 4 22 15 10 . 97 71 27 Launcher . | . . . . . . . . . . . . . . . . . . . . . . . Special 11 | . . . . . . . . . . . . . . . 2 . 1 1 . . . 7 Kinetic 764 | . 49 41 . . 18 47 7 22 7 . 127 12 6 . 4 22 144 62 35 85 41 35 Thermal 691 | 16 29 1 . . 33 45 12 37 25 . 13 9 12 . 2 20 115 28 12 102 82 98 Explosive . | . . . . . . . . . . . . . . . . . . . . . . . Electromagnetic 180 | . . . . . . 22 . . . 3 98 . . . . . . . . . 7 50 Robot Hit Streak 20 | 5 6 13 . . 10 15 8 20 10 8 14 14 6 . 5 12 17 10 5 16 13 18 Robot Miss Streak 8 | 3 3 4 . . 5 6 5 8 2 1 4 4 3 . 2 6 5 4 2 3 2 6 Penetration Max 2 | . . . . . . . . . . . 2 . . . . . 1 1 . 1 . . Secondary Targets 11 | . 3 . . . . . . . . . . . . . . . 4 3 . . . 1 Max Gunslinging Chain 2 | . 1 . . . . . . . . . . . . . . . 2 1 . . . 1 Shots Hit Robots 1032 | 8 48 24 . . 32 86 17 45 14 3 151 24 13 . 3 25 168 55 27 112 63 114 Core Hits 455 | 5 17 9 . . 22 50 12 30 9 . 63 13 6 . 2 16 57 20 12 43 23 46 Critical Hits 25 | . . . . . . 1 . . . . 10 . 2 . . . 2 1 . 6 . 3 Critical Kills 11 | . . . . . . . . . . . 5 . . . . . 1 . . 3 . 2 Critical Parts Destroyed 11 | . . . . . . 1 . . . . 4 . 2 . . . 1 . . 2 . 1 Melee Attacks 40 | . . . . . . . . . . . . 17 1 . . . . . . . . 22 Impact 11 | . . . . . . . . . . . . 10 1 . . . . . . . . . Slashing 22 | . . . . . . . . . . . . . . . . . . . . . . 22 Piercing 7 | . . . . . . . . . . . . 7 . . . . . . . . . . Sneak Attacks 1 | . . . . . . . . . . . . . . . . . . . . . . 1 Combat Hostiles . | . . . . . . . . . . . . . . . . . . . . . . . Follow-up Attacks 3 | . . . . . . . . . . . . 3 . . . . . . . . . . Damage Inflicted 24569 | 105 486 274 . . 423 1416 311 913 191 51 2839 527 311 . 71 579 4128 1437 596 3787 1931 4193 Guns 16440 | 105 486 274 . . 423 790 274 835 138 41 1097 51 156 . 31 160 3710 1257 596 1740 1020 3256 Cannons 7020 | . . . . . . 541 37 78 53 . 1544 212 155 . 40 419 418 180 . 2047 911 385 Explosions 410 | . . . . . . 85 . . . . 189 . . . . . . . . . . 136 Melee 481 | . . . . . . . . . . . . 264 . . . . . . . . . 217 Ramming 218 | . . . . . . . . . . 10 9 . . . . . . . . . . 199 Kinetic 9151 | . 282 274 . . 96 339 61 179 85 . 1236 184 44 . 42 351 2060 1000 418 1651 301 548 Thermal 12091 | 105 204 . . . 327 610 250 734 106 . 314 79 267 . 29 228 2068 437 178 2136 1441 2578 Explosive . | . . . . . . . . . . . . . . . . . . . . . . . Electromagnetic 2628 | . . . . . . 467 . . . 41 1280 . . . . . . . . . 189 651 Impact 103 | . . . . . . . . . . . . 103 . . . . . . . . . . Slashing 217 | . . . . . . . . . . . . . . . . . . . . . . 217 Piercing 161 | . . . . . . . . . . . . 161 . . . . . . . . . . Highest Corruption 15 | . . . . . . 2 2 2 2 2 6 6 6 3 . . 2 2 2 4 8 15 Average Corruption 2 | . . . . . . 1 2 2 2 2 2 6 4 3 . . 1 2 2 2 5 4 Corruption Purged 16 | . . . . . . . . . . . . . 3 . . . . . . 3 . 10 Effects 151 | . . . . . . 7 14 7 2 1 15 19 13 1 . . 2 4 4 10 11 41 Message Errors 32 | . . . . . . 1 5 2 1 . 2 4 3 . . . 1 1 . 1 1 10 Matter Fused 20 | . . . . . . . . . . . . 5 3 1 . . . . . 2 5 4 Heat Flow Errors 21 | . . . . . . . 5 1 . 1 2 3 1 . . . 1 1 1 . . 5 Energy Discharges 12 | . . . . . . 1 2 1 1 . 2 2 . . . . . . . 1 . 2 Parts Rejected 3 | . . . . . . . . . . . . . 1 . . . . . . . . 2 Data Loss (minor) 24 | . . . . . . 2 2 1 . . 5 2 3 . . . . 1 . 1 2 5 Data Loss (major) 2 | . . . . . . . . . . . . 1 . . . . . . . . 1 . Misfires 2 | . . . . . . . . . . . . . . . . . . . . . . 2 Misdirections 1 | . . . . . . . . . . . . . . . . . . . . . . 1 Targeting Errors 29 | . . . . . . 2 . 1 . . 4 2 2 . . . . 1 2 5 2 8 Weapon Failures 5 | . . . . . . 1 . 1 . . . . . . . . . . 1 . . 2 Overload Shots 2 | . . . . . . . . . . . . . . . . 2 . . . . . . Overflow Damage 193 | . . . . . . 4 . . . . 49 7 12 . . . . . . 56 65 . Projectiles 188 | . . . . . . 4 . . . . 49 2 12 . . . . . . 56 65 . Explosions . | . . . . . . . . . . . . . . . . . . . . . . . Melee 5 | . . . . . . . . . . . . 5 . . . . . . . . . . Knockbacks 32 | . . . . . . . . . . . 12 3 4 . . 6 . . . 4 3 . Impact . | . . . . . . . . . . . . . . . . . . . . . . . Kinetic 29 | . . . . . . . . . . . 11 3 3 . . 6 . . . 4 2 . Secondary 3 | . . . . . . . . . . . 1 . 1 . . . . . . . 1 . Self-Inflicted Damage 164 | . . . . . . . . . . 5 58 . . . . . . . . . 25 76 Shots 2 | . . . . . . . . . . . 1 . . . . . . . . . 1 . Rammed 13 | . . . . . . . . . . 1 3 . . . . . . . . . . 9 Targets Rammed 31 | . . . . . . . . . . 1 3 . . . . . . . . . . 27 Kicked 18 | . . . . . . . . . . . . . . . . . . . . . . 18 Crushed . | . . . . . . . . . . . . . . . . . . . . . . . Highest Temperature 490 | 120 141 9 . . 148 335 252 244 . 99 156 387 210 . 60 343 90 161 213 138 108 490 Average Temperature 81 | 51 75 7 . . 50 112 79 110 . 73 30 166 101 . 33 145 12 25 156 48 43 121 Received Heat Transfer 2739 | . 144 39 . . . 201 . 192 126 93 372 108 30 . . 81 504 180 27 411 198 33 Effects 11 | . . . . . . 3 . 1 . . . 1 . . . . . . . . . 6 Shutdowns 1 | . . . . . . . . . . . . . . . . . . . . . . 1 Energy Bleed 2 | . . . . . . 2 . . . . . . . . . . . . . . . . Interference 2 | . . . . . . 1 . 1 . . . . . . . . . . . . . . Matter Decay 1 | . . . . . . . . . . . . . . . . . . . . . . 1 Damage (minor) 1 | . . . . . . . . . . . . 1 . . . . . . . . . . Damage (major) 4 | . . . . . . . . . . . . . . . . . . . . . . 4 Siege Activations . | . . . . . . . . . . . . . . . . . . . . . . . Robots Corrupted 1 | . . . . . . . . . . . 1 . . . . . . . . . . . Combat Hostiles 1 | . . . . . . . . . . . 1 . . . . . . . . . . . Parts Fried 5 | . . . . . . 1 . . . . 1 . . . . . . . . . 1 2 Impact Corruptions . | . . . . . . . . . . . . . . . . . . . . . . . Robots Melted 1 | . . . . . . . . . . . . . . . . . . . . . . 1 Combat Hostiles 1 | . . . . . . . . . . . . . . . . . . . . . . 1 Parts Melted 29 | 1 . . . . 1 . . 2 . . . 1 . . . . 6 2 . 4 3 9 Heat Transferred 16030 | 285 510 . . . 690 667 400 995 220 . 400 124 422 . 50 435 3125 620 296 2353 1568 2870 Parts Sabotaged . | . . . . . . . . . . . . . . . . . . . . . . . Parts Stolen . | . . . . . . . . . . . . . . . . . . . . . . . Parts Stripped . | . . . . . . . . . . . . . . . . . . . . . . . Power Chain Reactions 4 | . . . . . . . . . . . 3 . . . . . . . . . . 1 Missiles Intercepted . | . . . . . . . . . . . . . . . . . . . . . . . Alert | -11 -10 -10 -10 -9 -8 -7 -7 -7 -7 -6 -6 -6 -6 -6 -5 -5 -5 -5 -5 -5 -4 -4 ------- Run | Scr Mat Min Exi Min Mat Fac Low Low Dat Pro Fac Low Low Zio Pro Fac Ext Cet Arc Hub Fac Arm Peak Influence 782 | 20 247 221 . . 68 183 . . . . 430 . . . . 51 554 282 346 782 555 563 Initial 382 | . 13 96 . . . 2 . . . . 37 . . . . . 24 225 96 121 382 221 Average 202 | 9 123 157 . . 30 45 . . . . 167 . . . . 20 168 239 306 459 444 309 Maximum Alert Level 3 | . 1 1 . . . . . . . . 2 . . . . . 2 1 1 3 2 2 Low Security (%) 52 | 100 80 70 . 100 100 100 . . . . 52 . . . . 100 68 2 9 18 . 14 Level 1 31 | . 19 29 . . . . . . . . 44 . . . . . 18 97 90 17 21 64 Level 2 14 | . . . . . . . . . . . 2 . . . . . 12 . . 51 78 20 Level 3 . | . . . . . . . . . . . . . . . . . . . . 12 . . Level 4 . | . . . . . . . . . . . . . . . . . . . . . . . Level 5 . | . . . . . . . . . . . . . . . . . . . . . . . High Security . | . . . . . . . . . . . . . . . . . . . . . . . Max Security . | . . . . . . . . . . . . . . . . . . . . . . . Squads Dispatched 42 | . 2 . . . 1 5 . . . . 11 . . . . 3 2 . . 7 5 6 Investigation 9 | . . . . . . 1 . . . . 6 . . . . . 1 . . 1 . . Extermination 12 | . . . . . . 3 . . . . 3 . . . . . . . . 1 2 3 Reinforcement 11 | . 2 . . . 1 1 . . . . . . . . . 3 1 . . 3 . . Assault 2 | . . . . . . . . . . . . . . . . . . . . 1 1 . Garrison 3 | . . . . . . . . . . . . . . . . . . . . 1 2 . Intercept 5 | . . . . . . . . . . . 2 . . . . . . . . . . 3 Construction Impeded 1 | . . . . . . . . . . . . . . . . 1 . . . . . . Haulers Reinforced 3 | . . . . . . . . . . . . . . . . 2 . . . 1 . . Stealth | -11 -10 -10 -10 -9 -8 -7 -7 -7 -7 -6 -6 -6 -6 -6 -5 -5 -5 -5 -5 -5 -4 -4 --------- Run | Scr Mat Min Exi Min Mat Fac Low Low Dat Pro Fac Low Low Zio Pro Fac Ext Cet Arc Hub Fac Arm Distress Signals 11 | . 1 . . . 1 . . . . . . . . . . . 1 1 . 2 1 4 Communications Jammed 7 | . . . . . . . . . . . 7 . . . . . . . . . . . Distress Signals 7 | . . . . . . . . . . . 7 . . . . . . . . . . . Times Spotted 277 | . 14 5 . . 5 16 5 5 4 5 38 5 6 . . 2 42 16 11 41 20 37 Peak Tracking Total 14 | . 4 3 . . 3 3 4 3 4 5 7 4 2 . . 1 7 14 1 6 8 13 Tactical Retreats 22 | . . . . . . 2 . . . 2 5 2 3 . . . 1 . . 4 . 3 Traps | -11 -10 -10 -10 -9 -8 -7 -7 -7 -7 -6 -6 -6 -6 -6 -5 -5 -5 -5 -5 -5 -4 -4 ------- Run | Scr Mat Min Exi Min Mat Fac Low Low Dat Pro Fac Low Low Zio Pro Fac Ext Cet Arc Hub Fac Arm Traps Triggered 9 | . . . . . . 2 . . . . 5 . . . . . . . . . . 2 Indirectly . | . . . . . . . . . . . . . . . . . . . . . . . Trap Hack Attempts . | . . . . . . . . . . . . . . . . . . . . . . . Triggered . | . . . . . . . . . . . . . . . . . . . . . . . Disarmed . | . . . . . . . . . . . . . . . . . . . . . . . Reprogrammed . | . . . . . . . . . . . . . . . . . . . . . . . Reused . | . . . . . . . . . . . . . . . . . . . . . . . Traps Extracted . | . . . . . . . . . . . . . . . . . . . . . . . Installed . | . . . . . . . . . . . . . . . . . . . . . . . Triggered 4 | . . . . . . . . 1 . . 2 . 1 . . . . . . . . . Machines | -11 -10 -10 -10 -9 -8 -7 -7 -7 -7 -6 -6 -6 -6 -6 -5 -5 -5 -5 -5 -5 -4 -4 ---------- Run | Scr Mat Min Exi Min Mat Fac Low Low Dat Pro Fac Low Low Zio Pro Fac Ext Cet Arc Hub Fac Arm Machines Disabled 33 | . . . . . . 1 . 1 . . 1 1 . . . . 5 . 4 8 3 9 Max in Single Turn 2 | . . . . . . 1 . 1 . . 1 1 . . . . 1 . 1 2 1 2 Garrison Access 3 | . . . . . . 1 . . . . 1 . . . . . . . . 1 . . Energy Cycler 2 | . . . . . . . . . . . . . . . . . 1 . . . . 1 Machines Sabotaged . | . . . . . . . . . . . . . . . . . . . . . . . Garrisons Compromised . | . . . . . . . . . . . . . . . . . . . . . . . Overloaded Fab Kills . | . . . . . . . . . . . . . . . . . . . . . . . Fab Network Shutdowns . | . . . . . . . . . . . . . . . . . . . . . . . Hacking | -11 -10 -10 -10 -9 -8 -7 -7 -7 -7 -6 -6 -6 -6 -6 -5 -5 -5 -5 -5 -5 -4 -4 --------- Run | Scr Mat Min Exi Min Mat Fac Low Low Dat Pro Fac Low Low Zio Pro Fac Ext Cet Arc Hub Fac Arm Machines Accessed 75 | . 2 . 5 . 3 10 1 . 3 . 17 1 . . . 3 10 1 . 7 5 7 Terminals 45 | . 1 . . . 3 5 . . . . 10 1 . . . 3 10 1 . 5 2 4 Fabricators 8 | . . . . . . 2 . . . . 2 . . . . . . . . . 1 3 Repair Stations 2 | . . . . . . 1 . . . . 1 . . . . . . . . . . . Recycling Units 6 | . 1 . . . . 1 . . . . 3 . . . . . . . . . 1 . Scanalyzers . | . . . . . . . . . . . . . . . . . . . . . . . Garrison Access 5 | . . . . . . 1 . . . . 1 . . . . . . . . 2 1 . Total Hacks 203 | . 4 . 28 . 9 20 1 . 22 . 42 1 . . . 4 20 1 . 15 19 17 Successful 117 | . 2 . 28 . 5 8 1 . 22 . 16 1 . . . 2 9 . . 7 8 8 Failed 86 | . 2 . . . 4 12 . . . . 26 . . . . 2 11 1 . 8 11 9 Catastrophic 15 | . . . . . 3 . . . . . 5 . . . . . 2 1 . 2 2 . Database Lockouts . | . . . . . . . . . . . . . . . . . . . . . . . Manual 106 | . 3 . 1 . 6 16 . . . . 34 1 . . . 3 9 1 . 12 14 6 Terminals 112 | . 2 . . . 9 12 . . . . 29 1 . . . 4 20 1 . 13 12 9 Fabricators 15 | . . . . . . 3 . . . . 2 . . . . . . . . . 2 8 Repair Stations 5 | . . . . . . 1 . . . . 4 . . . . . . . . . . . Recycling Units 15 | . 2 . . . . 3 . . . . 6 . . . . . . . . . 4 . Scanalyzers . | . . . . . . . . . . . . . . . . . . . . . . . Garrison Access 5 | . . . . . . 1 . . . . 1 . . . . . . . . 2 1 . Terminal Hacks 75 | . 1 . 28 . 3 1 1 . 22 . 2 1 . . . 1 7 . . 2 3 3 Record 34 | . . . 27 . . . . . 6 . . 1 . . . . . . . . . . Part Schematic 9 | . . . . . 1 . . . 7 . 1 . . . . . . . . . . . Robot Schematic 6 | . . . . . . . . . 6 . . . . . . . . . . . . . Prototype ID Bank 7 | . 1 . . . 1 . . . 3 . . . . . . . 1 . . . 1 . Open Door 9 | . . . . . . . 1 . . . . . . . . 1 5 . . . . 2 Branch Access Points 4 | . . . . . 1 1 . . . . 1 . . . . . . . . . 1 . Emergency Access Points 1 | . . . . . . . . . . . . . . . . . . . . 1 . . Unreport Threat 3 | . . . . . . . . . . . . . . . . . 1 . . 1 1 . Zone Layout 1 | . . . . . . . . . . . . . . . . . . . . . . 1 EX-Prototype ID Bank 1 | . . . 1 . . . . . . . . . . . . . . . . . . . Fabricator Hacks 2 | . . . . . . . . . . . . . . . . . . . . . . 2 Load Schematic 1 | . . . . . . . . . . . . . . . . . . . . . . 1 Build 1 | . . . . . . . . . . . . . . . . . . . . . . 1 Repair Station Hacks 2 | . . . . . . . . . . . 2 . . . . . . . . . . . Scan Component 1 | . . . . . . . . . . . 1 . . . . . . . . . . . Repair 1 | . . . . . . . . . . . 1 . . . . . . . . . . . Recycling Unit Hacks . | . . . . . . . . . . . . . . . . . . . . . . . Scanalyzer . | . . . . . . . . . . . . . . . . . . . . . . . Garrison Access Hacks 3 | . . . . . . 1 . . . . 1 . . . . . . . . 1 . . Seal Access 3 | . . . . . . 1 . . . . 1 . . . . . . . . 1 . . Unauthorized Hacks 35 | . 1 . . . 2 6 . . . . 11 . . . . 1 2 . . 4 5 3 Terminals 20 | . . . . . 2 2 . . . . 5 . . . . 1 2 . . 4 2 2 Assimilate 1 | . . . . . . 1 . . . . . . . . . . . . . . . . Botnet 18 | . . . . . 1 1 . . . . 5 . . . . 1 2 . . 4 2 2 Operators 1 | . . . . . 1 . . . . . . . . . . . . . . . . . Fabricators 3 | . . . . . . . . . . . 1 . . . . . . . . . 1 1 Siphon 2 | . . . . . . . . . . . . . . . . . . . . . 1 1 Overload 1 | . . . . . . . . . . . 1 . . . . . . . . . . . Repair Stations 2 | . . . . . . 1 . . . . 1 . . . . . . . . . . . Mechanics 2 | . . . . . . 1 . . . . 1 . . . . . . . . . . . Recycling Units 10 | . 1 . . . . 3 . . . . 4 . . . . . . . . . 2 . Monitor 1 | . . . . . . 1 . . . . . . . . . . . . . . . . Reject 6 | . 1 . . . . 1 . . . . 3 . . . . . . . . . 1 . Recyclers 1 | . . . . . . . . . . . . . . . . . . . . . 1 . Mask 2 | . . . . . . 1 . . . . 1 . . . . . . . . . . . Scanalyzers . | . . . . . . . . . . . . . . . . . . . . . . . Garrison Access . | . . . . . . . . . . . . . . . . . . . . . . . Data Cores Recovered 1 | . . . . . . . . . . . . . . . . . . . . 1 . . Used 1 | . . . . . . . . . . . . . . . . . . . . 1 . . Hacking Detections 52 | . 2 . . . 3 8 . . . . 15 . . . . 2 5 1 . 6 5 5 Full Trace Events 6 | . . . . . . 1 . . . . 3 . . . . . 1 . . 1 . . Feedback Events . | . . . . . . . . . . . . . . . . . . . . . . . Feedback Blocked . | . . . . . . . . . . . . . . . . . . . . . . . Robot Schematics Acquired 6 | . . . . . . . . . 6 . . . . . . . . . . . . . Robots Built . | . . . . . . . . . . . . . . . . . . . . . . . Matter . | . . . . . . . . . . . . . . . . . . . . . . . Time . | . . . . . . . . . . . . . . . . . . . . . . . Total Robot Build Rating . | . . . . . . . . . . . . . . . . . . . . . . . Part Schematics Acquired 9 | . . . . . 1 . . . 7 . 1 . . . . . . . . . . . Parts Built 2 | . . . . . . . . . . . . . . . . . . . . . . 2 Matter 146 | . . . . . . . . . . . . . . . . . . . . . . 146 Time 36 | . . . . . . . . . . . . . . . . . . . . . . 36 Total Part Build Rating 6 | . . . . . . . . . . . . . . . . . . . . . . 6 Parts Repaired 1 | . . . . . . . . . . . 1 . . . . . . . . . . . Time 50 | . . . . . . . . . . . 50 . . . . . . . . . . . Parts Recycled . | . . . . . . . . . . . . . . . . . . . . . . . Recycled Matter . | . . . . . . . . . . . . . . . . . . . . . . . Retrieved Matter . | . . . . . . . . . . . . . . . . . . . . . . . Retrieved Components . | . . . . . . . . . . . . . . . . . . . . . . . Parts Scanalyzed . | . . . . . . . . . . . . . . . . . . . . . . . Part Schematics Acquired . | . . . . . . . . . . . . . . . . . . . . . . . Parts Damaged . | . . . . . . . . . . . . . . . . . . . . . . . Bothacking | -11 -10 -10 -10 -9 -8 -7 -7 -7 -7 -6 -6 -6 -6 -6 -5 -5 -5 -5 -5 -5 -4 -4 ------------ Run | Scr Mat Min Exi Min Mat Fac Low Low Dat Pro Fac Low Low Zio Pro Fac Ext Cet Arc Hub Fac Arm Used RIF Installer . | . . . . . . . . . . . . . . . . . . . . . . . Robots Hacked . | . . . . . . . . . . . . . . . . . . . . . . . Non-combat . | . . . . . . . . . . . . . . . . . . . . . . . Combat . | . . . . . . . . . . . . . . . . . . . . . . . Robot Hacks Applied . | . . . . . . . . . . . . . . . . . . . . . . . Relay Couplers Released . | . . . . . . . . . . . . . . . . . . . . . . . Robots Rewired 31 | . . . . . . . . . . . 1 . . . . . 21 . . . . 9 Allies Hacked 3 | . . . . . . . . . . . . . . . . . 1 . . . . 2 Hacks Repelled . | . . . . . . . . . . . . . . . . . . . . . . . Allies | -11 -10 -10 -10 -9 -8 -7 -7 -7 -7 -6 -6 -6 -6 -6 -5 -5 -5 -5 -5 -5 -4 -4 -------- Run | Scr Mat Min Exi Min Mat Fac Low Low Dat Pro Fac Low Low Zio Pro Fac Ext Cet Arc Hub Fac Arm Total Allies 49 | . . . . 3 . . . . . . 1 . . . . . 31 5 . . . 9 Largest Group 10 | . . . . 3 3 . . . . . 1 . . . . . 10 9 3 3 . 7 Highest-Rated Group 376 | . . . . 40 40 . . . . . 29 . . . . . 371 376 282 282 . 314 Highest-Rated Ally 156 | . . . . 16 16 . . . . . 29 . . . . . 156 134 94 94 . 60 Total Orders 3 | . . . . . 1 . . . . . . . . . . . . . . . . 2 STAY 2 | . . . . . 1 . . . . . . . . . . . . . . . . 1 FOLLOW 1 | . . . . . . . . . . . . . . . . . . . . . . 1 Ally Attacks 304 | . . . . . 10 . . . . . 7 . . . . . 177 31 14 34 . 31 Total Damage 7492 | . . . . . 87 . . . . . 94 . . . . . 4081 585 494 1291 . 860 Kills 39 | . . . . . . . . . . . 1 . . . . . 24 2 3 5 . 4 Allies Corrupted 2 | . . . . . . . . . . . . . . . . . . . . . . 2 Allies Melted . | . . . . . . . . . . . . . . . . . . . . . . . Intel | -11 -10 -10 -10 -9 -8 -7 -7 -7 -7 -6 -6 -6 -6 -6 -5 -5 -5 -5 -5 -5 -4 -4 ------- Run | Scr Mat Min Exi Min Mat Fac Low Low Dat Pro Fac Low Low Zio Pro Fac Ext Cet Arc Hub Fac Arm Robot Analysis Total 115 | . . . . . . . . . 115 . . . . . . . . . . . . . Derelict Logs Recovered 5 | . . . . 2 . . . . . . . 2 . . 1 . . . . . . . Drone Launches . | . . . . . . . . . . . . . . . . . . . . . . . Drone Recoveries . | . . . . . . . . . . . . . . . . . . . . . . . Exploration | -11 -10 -10 -10 -9 -8 -7 -7 -7 -7 -6 -6 -6 -6 -6 -5 -5 -5 -5 -5 -5 -4 -4 ------------- Run | Scr Mat Min Exi Min Mat Fac Low Low Dat Pro Fac Low Low Zio Pro Fac Ext Cet Arc Hub Fac Arm Turns Passed 15528 | 95 352 233 661 194 476 1374 835 597 201 343 2036 800 391 1121 590 188 1508 347 233 733 633 1587 Spaces Moved 10263 | 51 172 138 544 158 324 868 649 387 112 410 1375 598 281 975 465 116 756 139 146 370 368 861 Core 7 | 7 . . . . . . . . . . . . . . . . . . . . . . Treads . | . . . . . . . . . . . . . . . . . . . . . . . Legs 10256 | 44 172 138 544 158 324 868 649 387 112 410 1375 598 281 975 465 116 756 139 146 370 368 861 Wheels . | . . . . . . . . . . . . . . . . . . . . . . . Hover . | . . . . . . . . . . . . . . . . . . . . . . . Flight . | . . . . . . . . . . . . . . . . . . . . . . . Fastest Speed 45 | 50 120 120 120 120 120 120 123 123 45 45 45 90 105 114 114 114 114 120 120 120 120 45 Average Speed 115 | 110 120 120 120 120 120 121 123 134 123 76 107 99 115 114 114 114 119 120 120 126 120 117 Slowest Speed 153 | 120 120 120 150 120 120 150 123 153 153 105 120 130 140 114 114 114 150 120 120 150 120 150 Overloaded Moves 278 | . . . . . . . . . 28 126 68 . . . . . . . . . . 56 Propulsion Burnouts . | . . . . . . . . . . . . . . . . . . . . . . . Robots Hopped . | . . . . . . . . . . . . . . . . . . . . . . . Cave-ins Triggered 3 | . . . . . . . . . . . . . . . . . . . . . 1 2 Exploration Rate (%) 50 | 3 50 28 91 43 22 18 63 54 80 78 39 71 42 84 66 4 73 68 81 39 12 49 Regions Visited 22 Branch Regions 16 Pre-discovered Areas 29 | . . . . 1 . . . . 26 . . . . 1 1 . . . . . . . Known Exits Taken 10 | . . . . . . 1 . . . . 1 . . 1 1 1 1 1 1 1 1 . Unknown Exits Taken 12 | 1 1 1 1 1 1 . 1 1 1 1 . 1 1 . . . . . . . . . Scrap Searched 20 | . . 1 . 1 . . 4 2 . 1 . 5 3 3 . . . . . . . . Spaces Dug 64 | . . . . . . . . . . . 14 6 1 . . 2 . . . . 23 18 Terrain Destroyed 215 | . . . . . . . . . . . 42 6 1 . . 2 7 12 5 54 51 35 Melee 25 | . . . . . . . . . . . . 6 1 . . . . . . . . 18 Projectile 169 | . . . . . . . . . . . 30 . . . . 2 7 12 5 54 50 9 AOE 21 | . . . . . . . . . . . 12 . . . . . . . . . 1 8 Terrain Rammed 5 | . . . . . . . . . . . . . . . . . . . . . . 5 Walls Destroyed . | . . . . . . . . . . . . . . . . . . . . . . . Machines Disabled . | . . . . . . . . . . . . . . . . . . . . . . . Actions | -11 -10 -10 -10 -9 -8 -7 -7 -7 -7 -6 -6 -6 -6 -6 -5 -5 -5 -5 -5 -5 -4 -4 --------- Run | Scr Mat Min Exi Min Mat Fac Low Low Dat Pro Fac Low Low Zio Pro Fac Ext Cet Arc Hub Fac Arm Total 12710 | 73 243 168 554 162 373 1092 671 421 146 434 1752 759 331 987 517 143 1199 261 175 515 470 1264 Wait 762 | . 8 3 . 5 5 114 9 1 18 5 190 103 23 . 43 . 23 56 3 56 32 65 Move 10241 | 50 171 137 543 157 323 867 648 386 111 409 1374 597 280 974 464 115 755 138 145 369 367 861 Hop . | . . . . . . . . . . . . . . . . . . . . . . . Pick Up 156 | 8 12 1 5 . 6 17 1 4 . 8 23 15 2 4 . 3 17 13 1 3 3 10 Fast Attach 127 | 1 . 1 . . 7 11 2 1 . . 11 . 7 . 2 3 29 3 5 10 8 26 Attach 94 | 6 2 . 2 . 1 10 . 1 2 8 16 10 . 1 1 2 11 9 . 2 2 8 Detach 4 | . . . . . . . . . . . 1 1 . . 1 . . 1 . . . . Swap 112 | . 5 2 . . 3 7 1 2 1 . 7 4 6 2 . 1 23 5 2 9 2 30 Drop 221 | . 5 3 4 . 10 19 3 4 . . 23 2 6 6 2 4 47 9 7 18 8 41 Fire 586 | 8 40 21 . . 18 47 7 22 14 3 98 13 6 . 4 15 71 27 12 48 48 64 Melee 37 | . . . . . . . . . . . . 14 1 . . . . . . . . 22 Ram 4 | . . . . . . . . . . . . . . . . . . . . . . 4 Kick 31 | . . . . . . . . . . 1 3 . . . . . . . . . . 27 Crush . | . . . . . . . . . . . . . . . . . . . . . . . Escape Stasis 3 | . . . . . . . . . . . 2 . . . . . 1 . . . . . Rewire 332 | . . . . . . . . . . . 4 . . . . . 222 . . . . 106 Trap . | . . . . . . . . . . . . . . . . . . . . . . . Miscellaneous . | . . . . . . . . . . . . . . . . . . . . . . . Route ------- -11/Scrapyard -10/Materials (discovered 3 exits: [*Mat] / [*Min x2]) -10/Mines (discovered 2 exits: [*Mat] / *Exi) -10/Exiles -9/Mines -8/Materials (discovered 2 exits: *Fac / Sto) -7/Factory (discovered 4 exits: *Fac x2 / *Low x2) -7/Lower Caves -7/Lower Caves -7/Data Miner -6/Proximity Caves -6/Factory (discovered 5 exits: *Fac x3 / *Low x2) -6/Lower Caves -6/Lower Caves (discovered 2 exits: *Fac / [*Zio]) -6/Zion -5/Proximity Caves -5/Factory (discovered 2 exits: Upp / *Ext) -5/Extension (discovered 2 exits: *Fac / *Cet) -5/Cetus -5/Archives (discovered 3 exits: *Fac / *Hub x2) -5/Hub_04(d) (discovered 2 exits: *Fac x2) -4/Factory (discovered 3 exits: Upp x2 / *Arm) -4/Armory History --------- Turn | Location | Event 6 | -11/Scrapyard | Discovered new exit (range 15) 96 | -11/Scrapyard | Entered Materials 283 | -10/Materials | Discovered new exit (range 12) 299 | -10/Materials | Discovered new exit (range 7) 310 | -10/Materials | Build established: Mutant 411 | -10/Materials | Discovered new exit (range 9) 448 | -10/Materials | Entered Mines 571 | -10/Mines | Discovered new exit (range 3) 573 | -10/Mines | Met a Derelict bent on vengeance 677 | -10/Mines | Deemed a non-threat by the Exiles lab entrance 677 | -10/Mines | Discovered new exit (range 5) 681 | -10/Mines | Entered Exiles 709 | -10/Exiles | Met 8R-AWN 732 | -10/Exiles | Met EX-HEX 767 | -10/Exiles | Met EX-BIN 781 | -10/Exiles | Aligned with FarCom system 782 | -10/Exiles | Given EX-Vault access code 810 | -10/Exiles | Opened EX-Vault 815 | -10/Exiles | Found Prototype Leg 816 | -10/Exiles | Identified Potential Leg 828 | -10/Exiles | Found Potential Leg 875 | -10/Exiles | Warned to stay clear of 0b10 Research branches 1051 | -10/Exiles | Visited The Gauntlet 1159 | -10/Exiles | Met EX-DEC 1329 | -10/Exiles | Discovered new exit (range 14) 1342 | -10/Exiles | Left Exiles lab with Potential Leg 1342 | -10/Exiles | Entered Mines 1465 | -9/Mines | Assisted by bots powering up and referring to "LRC-V3" 1513 | -9/Mines | Discovered new exit (range 16) 1536 | -9/Mines | Entered Materials 1536 | -8/Materials | Accompanied by 3 allies 1536 | -8/Materials | Evolved 4 slots: Propulsion x1, Utility x2, Weapon x1 1537 | -8/Materials | Identified exit to Storage 1765 | -8/Materials | Discovered new exit (range 16) 1947 | -8/Materials | Build established: Scavenger-Skirmisher 2012 | -8/Materials | Entered Factory 2012 | -7/Factory | Evolved 2 slots: Utility x2 2311 | -7/Factory | Discovered new exit (range 13) 2346 | -7/Factory | Lost 3 parts (3w) 2908 | -7/Factory | Discovered new exit (range 7) 2995 | -7/Factory | Discovered new exit (range 13) 3055 | -7/Factory | Lost 3 parts (1u2w) 3102 | -7/Factory | Identified exit to Lower Caves 3386 | -7/Factory | Entered Lower Caves 3465 | -7/Lower Caves | Build established: Tank 4092 | -7/Lower Caves | Discovered new exit (range 5) 4221 | -7/Lower Caves | Entered another Lower Caves area 4338 | -7/Lower Caves | Attacked by a delusional Derelict stockpiling parts 4442 | -7/Lower Caves | Spotted B-75 Beast 4462 | -7/Lower Caves | Destroyed B-75 Beast 4772 | -7/Lower Caves | Discovered new exit (range 6) 4818 | -7/Lower Caves | Entered Data Miner 4818 | -7/Data Miner | Discovered new exit (range 6) 4848 | -7/Data Miner | Met Data Miner 4874 | -7/Data Miner | Learned location of Section 7 (-2) 4874 | -7/Data Miner | Acquired the access code to Warlord's prototype stash 4903 | -7/Data Miner | Received God Mode back door access code from Data Miner 4917 | -7/Data Miner | Interfaced with the Data Conduit 5019 | -7/Data Miner | Entered Proximity Caves 5036 | -6/Proximity Caves | Lost 10 parts (1p3n2u4w) 5309 | -6/Proximity Caves | Spotted B-75 Beast 5355 | -6/Proximity Caves | Discovered new exit (range 15) 5362 | -6/Proximity Caves | Entered Factory 5362 | -6/Factory | Evolved 2 slots: Power x1, Propulsion x1 5363 | -6/Factory | Loaded intel: 251 machine locations 5475 | -6/Factory | Discovered new exit (range 16) 6122 | -6/Factory | Build established: Skirmisher 6591 | -6/Factory | Discovered new exit (range 6) 6787 | -6/Factory | Repaired Imp. Transmission Jammer 7250 | -6/Factory | Intercept squad dispatched 7268 | -6/Factory | Discovered new exit (range 14) 7271 | -6/Factory | Spotted Tracker 7319 | -6/Factory | Spotted Combat Programmer 7324 | -6/Factory | Destroyed Tracker 7356 | -6/Factory | Identified exit to Lower Caves 7374 | -6/Factory | Lost 12 parts (2p4n1u5w) 7379 | -6/Factory | Core integrity fell below 50% 7398 | -6/Factory | Entered Lower Caves 7410 | -6/Lower Caves | Learned Factory terminal intel 7426 | -6/Lower Caves | Lost 4 parts (1p1n1u1w) 7551 | -6/Lower Caves | Found Alien Artifact 7552 | -6/Lower Caves | Identified Core Expander 7552 | -6/Lower Caves | Installed Core Expander, added new Propulsion slot 7610 | -6/Lower Caves | Learned 4 Factory zone layouts 7914 | -6/Lower Caves | Acquired the password to a Derelict Tinkerer's latest research 7920 | -6/Lower Caves | Found Prototype Special Weapon 8091 | -6/Lower Caves | Discovered new exit (range 16) 8198 | -6/Lower Caves | Entered another Lower Caves area 8201 | -6/Lower Caves | Discovered new exit (range 11) 8545 | -6/Lower Caves | Discovered new exit (range 9) 8589 | -6/Lower Caves | Entered Zion 8627 | -6/Zion | System corruption cleaned by Quarantine Array 8715 | -6/Zion | Discovered new exit (range 14) 8801 | -6/Zion | Build established: Derelict-Skirmisher 8951 | -6/Zion | Learned Factory emergency access door positions 9161 | -6/Zion | Received a visual enhancement algorithm 9417 | -6/Zion | Rebuked by Imprinter 9597 | -6/Zion | Found Prototype Energy Gun 9709 | -6/Zion | Identified exit to Proximity Caves 9710 | -6/Zion | Entered Proximity Caves 10121 | -5/Proximity Caves | Discovered new exit (range 17) 10266 | -5/Proximity Caves | Identified Molecular Deconstructor 10299 | -5/Proximity Caves | Identified exit to Factory 10300 | -5/Proximity Caves | Entered Factory 10300 | -5/Factory | Evolved 2 slots: Utility x1, Weapon x1 10301 | -5/Factory | Identified exit to Upper Caves 10303 | -5/Factory | Loaded intel: 268 machine locations 10304 | -5/Factory | Loaded intel: 22 terminal locations 10485 | -5/Factory | Discovered new exit (range 5) 10487 | -5/Factory | Identified exit to Extension 10488 | -5/Factory | Entered Extension 10489 | -5/Extension | Loaded intel: 32 machine locations 10492 | -5/Extension | Disrupted transfer network 10570 | -5/Extension | Rescued a captive Derelict 10574 | -5/Extension | Rescued a captive Derelict 10609 | -5/Extension | Rescued a captive Derelict 10610 | -5/Extension | Rescued a captive Derelict 10755 | -5/Extension | Build established: Scavenger-Skirmisher 10986 | -5/Extension | Rescued a captive Derelict 10987 | -5/Extension | Rescued a captive Derelict 11067 | -5/Extension | Rescued a captive Derelict 11121 | -5/Extension | Spotted B-75 Beast 11133 | -5/Extension | Spotted B-75 Beast 11167 | -5/Extension | Destroyed B-75 Beast 11190 | -5/Extension | Destroyed B-75 Beast 11225 | -5/Extension | Lost 13 parts (2p4n3u4w) 11504 | -5/Extension | Rescued a captive Derelict 11504 | -5/Extension | Rescued a captive Derelict 11564 | -5/Extension | Rescued A7 11609 | -5/Extension | Energy Cycler disabled 11738 | -5/Extension | Lost 3 parts (3w) 11971 | -5/Extension | Discovered new exit (range 10) 11972 | -5/Extension | Discovered new exit (range 6) 11988 | -5/Extension | Identified exit to Factory 11993 | -5/Extension | Identified exit to Cetus 11996 | -5/Extension | Entered Cetus 11996 | -5/Cetus | Accompanied by 9 allies (A7) 11997 | -5/Cetus | Loaded intel: 24 machine locations 12001 | -5/Cetus | Acquired a Cetus Manufacturing Module code from A7 12015 | -5/Cetus | Spotted Cetus Guard 12015 | -5/Cetus | Spotted Cetus Guard 12021 | -5/Cetus | Spotted Cetus Guard 12026 | -5/Cetus | Spotted Cetus Guard 12039 | -5/Cetus | Allies destroyed Cetus Guard 12042 | -5/Cetus | Allies destroyed Cetus Guard 12073 | -5/Cetus | Destroyed Cetus Guard 12088 | -5/Cetus | Destroyed Cetus Guard 12109 | -5/Cetus | Destroyed 9 combat bots 12109 | -5/Cetus | Lost 8 parts (1p2n1u4w) 12126 | -5/Cetus | Extracted ID and sensor layout for unrecognized location from A7's data core 12204 | -5/Cetus | Started Cetus Manufacturing Module 12229 | -5/Cetus | Manufactured an Enhanced Grunt 12250 | -5/Cetus | Discovered new exit (range 16) 12254 | -5/Cetus | Manufactured an Enhanced Grunt 12263 | -5/Cetus | Core integrity fell below 50% 12279 | -5/Cetus | Manufactured an Enhanced Grunt 12285 | -5/Cetus | Identified exit to Archives 12304 | -5/Cetus | Manufactured an Enhanced Grunt 12329 | -5/Cetus | Manufactured an Enhanced Grunt 12343 | -5/Cetus | Entered Archives 12343 | -5/Archives | Accompanied by 3 allies 12344 | -5/Archives | Loaded intel: 8 machine locations 12392 | -5/Archives | Unable to access archive contents 12405 | -5/Archives | Discovered new exit (range 16) 12416 | -5/Archives | Unable to access archive contents 12429 | -5/Archives | Unable to access archive contents 12431 | -5/Archives | Discovered new exit (range 16) 12447 | -5/Archives | Unable to access archive contents 12449 | -5/Archives | Discovered exit to Factory (range 16) 12573 | -5/Archives | Identified exit to Hub_04(d) 12576 | -5/Archives | Entered Hub_04(d) 12576 | -5/Hub_04(d) | Accompanied by 3 allies 12577 | -5/Hub_04(d) | Loaded intel: 99 machine locations 12779 | -5/Hub_04(d) | Discovered exit to Factory (range 15) 12831 | -5/Hub_04(d) | Disrupted transfer network 12926 | -5/Hub_04(d) | Discovered exit to Factory (range 9) 13129 | -5/Hub_04(d) | Garrison activated, responded to threat 13176 | -5/Hub_04(d) | First assault squad dispatched 13309 | -5/Hub_04(d) | Entered Factory 13309 | -4/Factory | Evolved 2 slots: Utility x2 13310 | -4/Factory | Loaded intel: 312 machine locations 13344 | -4/Factory | Garrison activated, responded to threat 13448 | -4/Factory | Garrison activated, responded to threat 13594 | -4/Factory | Identified exit to Upper Caves 13594 | -4/Factory | Identified exit to Armory 13743 | -4/Factory | Crushed by falling debris 13842 | -4/Factory | First assault squad dispatched 13942 | -4/Factory | Entered Armory 13943 | -4/Armory | Loaded intel: 87 machine locations 13972 | -4/Armory | Lost 5 parts (1p1n1u2w) 14019 | -4/Armory | Found Molecular Scythe 14040 | -4/Armory | Found Com. Tesla Bomb Launcher 14411 | -4/Armory | Found Unknown Device 14411 | -4/Armory | Identified Adv. Force Booster 14572 | -4/Armory | Fabricated Adv. Terrain Scanner (x2) 15001 | -4/Armory | Crushed by falling debris 15302 | -4/Armory | P-70 Sage assimilated allied Veteran 7a 15393 | -4/Armory | P-70 Sage assimilated allied Warrior 7a 15402 | -4/Armory | Intercept squad dispatched 15422 | -4/Armory | Spotted Tracker 15422 | -4/Armory | Spotted Tracker 15425 | -4/Armory | Spotted Combat Programmer 15425 | -4/Armory | Spotted Combat Programmer 15426 | -4/Armory | Core integrity fell below 50% 15478 | -4/Armory | Crushed by falling debris 15478 | -4/Armory | System corruption reached 10% 15502 | -4/Armory | Core integrity fell below 20% 15518 | -4/Armory | Destroyed Tracker 15521 | -4/Armory | Lost 15 parts (2p8u5w) 15529 | -4/Armory | Core destroyed Last Messages --------------- 15518_ Tracker destroyed. 15520_ The unstable cave ceiling collapses. 15520_ 3 Matter crushed. 15525_ Kicked Earth. 15525_ Destabilizing: System corrupted (+1). 15525_ Centrium Leg permanently disabled. 15525_ Destabilizing: Short circuit. 15526_ Kicked Earth. 15526_ Centrium Leg permanently disabled. 15526_ Destabilizing: Short circuit. 15526_ Destabilizing: Core damaged (-46). 15527_ Kicked Earth. 15527_ Destabilizing: Core damaged (-57). 15527_ Destabilizing: System corrupted (+2). 15528_ Kicked Earth. 15528_ Destabilizing: Core damaged (-11). 15528_ Destabilizing: Core damaged (-23). 15529_ Kicked Earth. 15529_ Destabilizing: System corrupted (+2). 15529_ Destabilizing: Core damaged (-46). Map ----- +----------------------------------------------------+ | | | | | | | | | | | | | | | | | | | | | | | | | | | | | | | | | | | | | ?????????????????????????????????????????????????? | | ?????????????????????????????????????????????????? | | ???????????????????????????????????????????"""""?? | | "?"""??????????????????????????????????????"???"?? | | "F"""?????????????????????####?????????????"???"?? | | """""????????????????????##% #?????????????"""""?? | | ????????????????????????##%###???????????????????? | | ???????????????????????##@#%##???????????????????? | | ???????????????????????#### #???????????????????? | | ???????????????????????#%## ################????? | | ????????????"""????????#### # # #????? | | ????????????"""????????????#####[ #????? | | """?????????"""??????????????#pp p #???? | | """??????????????????????????###p +?? | | """?????????"""????????????????# #? | | """?????????"""???????????#############/##### | | """?????????"""???????????# [! | | ??????????????????????????# [! | | ????????????????????????### " !! | | ????????????????h??? " | | ????????????????h??? """ | | ?????????????????????###### """ ######## | | ??????????????????????????# """ #??????? | | ??????????????????????????# """ #??????? | | ?????????????#????????????# """ #??????? | | ??????????????????????###?# """ #??????? | | ?#??????##????????????# ## " " ##?????? | | ?????? ?????????? ??+ [ ?? | | ??? ?????????? ??+ ? | | ? ????#???????# !##+#########/###########+ | | # !!#???????????#??# # | | # % !%#??????????????# =# | +----------------------------------------------------+ Best States ------------- Heat Dissipation 131 Coolant Potential 100 Energy Generation 43 Energy Capacity 590 Matter Stores 300 Matter Capacity 300 Sight Range 16 Robot Scan Range 16 Terrain Scan Range 20 Terrain Scan Density 210 Jamming Range 12 Base Temperature (-) 150 Armor Coverage 600 Phase Shifting 10 Evasion (%) 58 Targeting Accuracy 8 Armor Integrity Analysis 33 Particle Charging 30 Stasis Canceling 2 Offensive Hacking 10 Item Schematics ----------------- Adv. Terrain Scanner | -8/Materials | Hacked Combat Drone Bay | -7/Data Miner | Free Lgt. Regenerative Plating | -7/Data Miner | Free Cmb. Gravmag System | -7/Data Miner | Free Exp. Targeting Computer | -7/Data Miner | Free Plasma Sword | -7/Data Miner | Free Kinetic Spear | -7/Data Miner | Free Exp. Transmission Jammer | -7/Data Miner | Free Point Defense Array | -6/Factory | Hacked Robot Schematics ------------------ S-27 Virus | -7/Data Miner | Free G-50 Soldier | -7/Data Miner | Free X-72 Disruptor | -7/Data Miner | Free G-67 Veteran | -7/Data Miner | Free I-36 Angel | -7/Data Miner | Free I-47 Archangel | -7/Data Miner | Free Fabricated ------------ Adv. Terrain Scanner | x2 | -4/Armory Alien Tech Used ----------------- Core Expander Achievements -------------- None Challenges ------------ None Game ------ Seed GatlingCoordinationPod Manual? 0 Play Time 04:07:53 Cumulative 113.7 hours Start 2020.11.21 @ 18:38:45 End 2020.11.22 @ 14:52:15 Sessions 5 Manual Loads 0 Difficulty Rogue Special Mode Halloween2020/ForbiddenLore Game No. 32 Rogue 9 Adventurer 23 Explorer 0 Win Type - Total 5 Types 5/0/0/0/0/0/0/0/0 Lore% 75 Gallery% 78 Achievement% 61 Wizard Run 0 Options --------- ASCII 0 Keyboard 0 Movement Mouse Keybinds 0 Fullscreen 1 Font 18/SmallcapsGlow Map View 76x50 Tactical HUD 1 Map Filters NONE Filters NONE Steam 1 RUN: 0f11936f-1a61-40e6-a532-f038388d20ff